[Event "French Top 16-A 2024"]
[Site "Chartres"]
[Date "2024.06.05"]
[Round "7.8"]
[White "Fischer, Julie"]
[Black "Milliet, Sophie"]
[Result "0-1"]
[ECO "B40"]
[WhiteElo "2092"]
[BlackElo "2385"]
[Annotator "RC"]
[PlyCount "116"]
[EventDate "2024.06.01"]
[EventType "team-tourn"]
[EventCountry "FRA"]
[SourceTitle "playchess.com"]
[Source "ChessBase"]
[SourceQuality "1"]
[TimeControl "40/5400+30:1800+30"]

1. e4 {[%emt 0:00:03]} c5 {[%emt 0:00:03]} 2. Nf3 {[%emt 0:00:26]} e6 {[%emt 0:00:03]} 3. b3 {[%emt 0:00:36]} a6 {[%emt 0:00:08]} 4. Bb2 {[%emt 0:02:16]} Nc6 {[%emt 0:00:05]} 5. e5 {[%emt 0:05:04]} b6 {[%emt 0:18:13]} 6. Bd3 {[%emt 0:04:45]} Bb7 {[%emt 0:00:18]} 7. O-O {[%emt 0:00:35]} Nb4 {[%emt 0:01:42]} 8. Be2 {[%emt 0:00:59]} Ne7 {[%emt 0:00:42]} 9. d4 {[%emt 0:08:26]} Nf5 {[%emt 0:00:42]} 10. c4 {[%emt 0:07:37]} cxd4 {[%emt 0:05:55]} 11. Nxd4 {[%emt 0:03:06]} Nxd4 {[%emt 0:12:51]} 12. Bxd4 {[%emt 0:00:36]} Nc6 {[%emt 0:00:48]} 13. Bf3 {[%emt 0:04:17]} Qc7 {[%emt 0:01:58]} 14. Bb2 {[%emt 0:03:05]} d6 {[%emt 0:04:02]} 15. Qe2 {[%emt 0:02:31]} Be7 {[%emt 0:10:57]} 16. exd6 {[%emt 0:05:39]} Bxd6 {[%emt 0:00:04]} 17. h3 {[%emt 0:00:08]} O-O {[%emt 0:00:11]} 18. Nd2 {[%emt 0:49:21]} Rad8 {[%emt 0:01:15]} 19. Rad1 {[%emt 0:00:00]} Bc5 {[%emt 0:02:40]} 20. Bxc6 {[%emt 0:00:00]} Qxc6 {[%emt 0:00:56]} 21. Nf3 {[%emt 0:00:00]} f6 {[%emt 0:00:52]} 22. Rd2 {[%emt 0:00:00]} Rxd2 {[%emt 0:06:14]} 23. Qxd2 {[%emt 0:00:00]} Qc8 {[%emt 0:03:10]} 24. Qe2 {[%emt 0:00:00]} Rd8 {[%emt 0:01:18]} 25. Rd1 {[%emt 0:00:00]} e5 {[%emt 0:02:01]} 26. a3 {[%emt 0:00:00]} a5 {[%emt 0:00:13]} 27. Ne1 {[%emt 0:00:00]} Rd6 {[%emt 0:14:22]} 28. Rxd6 {[%emt 0:00:00]} Bxd6 {[%emt 0:00:01]} 29. f3 {[%emt 0:00:00]} f5 {[%emt 0:04:37]} 30. Kh1 {[%emt 0:01:23]} Qe6 {[%emt 0:03:11]} 31. Qd2 {[%emt 0:02:22]} Bc7 {[%emt 0:03:52]} 32. Nc2 {[%emt 0:01:01]} e4 {[%emt 0:01:11]} 33. Qd4 {[%emt 0:00:34]} Qg6 {[%emt 0:00:07]} 34. f4 {[%emt 0:00:39]} Bc6 {[%emt 0:02:07]} 35. Ne3 {[%emt 0:00:31]} Bxf4 {[%emt 0:00:36]} 36. Nxf5 {[%emt 0:00:27]} Bg5 {[%emt 0:00:24]} 37. Qe5 {[%emt 0:01:19]} h6 {[%emt 0:00:35]} 38. Nd4 {[%emt 0:00:26]} Bf6 {[%emt 0:00:26]} 39. Qe6+ {[%emt 0:00:09]} Kh7 {[%emt 0:00:22]} 40. Qxc6 {[%emt 0:00:29]} e3 {[%emt 0:00:04]} 41. Ne2 {[%emt 0:17:42]} Bxb2 {[%emt 0:01:49]} 42. Qxg6+ {[%emt 0:06:15]} Kxg6 {[%emt 0:00:02]} 43. g4 {[%emt 0:00:40]} Bxa3 {[%emt 0:02:52]} 44. Kg2 {[%emt 0:00:05]} Bc5 {[%emt 0:00:08]} 45. Kf3 {[%emt 0:00:07]} Kf6 {[%emt 0:02:57]} 46. Kf4 {[%emt 0:02:12]} Ke6 {[%emt 0:00:59]} 47. Ke4 {[%emt 0:01:22]} Kd6 {[%emt 0:01:21]} 48. h4 {[%emt 0:03:49]} Kc6 {[%emt 0:01:44]} 49. Nc3 {[%emt 0:02:10]} Bb4 {[%emt 0:15:59]} 50. Ne2 {[%emt 0:00:06]} Bd2 {[%emt 0:01:01]} 51. h5 {[%emt 0:01:58]} Kc5 {[%emt 0:00:46]} 52. Kd3 {[%emt 0:00:19]} Kb4 {[%emt 0:01:11]} 53. Nd4 {[%emt 0:00:52]} Bc3 {[%emt 0:01:25]} 54. Ne2 {[%emt 0:00:26]} Bf6 {[%emt 0:01:32]} 55. Kc2 {[%emt 0:00:32]} a4 {[%emt 0:00:59]} 56. Nc1 {[%emt 0:00:31]} axb3+ {[%emt 0:00:26]} 57. Nxb3 {[%emt 0:00:06]} e2 {[%emt 0:00:27]} 58. Nc1 {[%emt 0:00:06]} e1=N+ {[%emt 0:00:14]} 0-1

[Event "French Top 16-A 2024"]
[Site "Chartres"]
[Date "2024.06.05"]
[Round "7.8"]
[White "Lemonnier, Remi"]
[Black "Malassagne, Isabelle"]
[Result "1-0"]
[ECO "B12"]
[WhiteElo "2022"]
[BlackElo "2090"]
[Annotator "RC"]
[PlyCount "123"]
[EventDate "2024.06.01"]
[EventType "team-tourn"]
[EventCountry "FRA"]
[SourceTitle "playchess.com"]
[Source "ChessBase"]
[SourceQuality "1"]
[TimeControl "40/5400+30:1800+30"]

1. e4 {[%emt 0:00:01]} c6 {[%emt 0:00:23]} 2. d4 {[%emt 0:02:30]} d5 {[%emt 0:00:05]} 3. e5 {[%emt 0:00:03]} c5 {[%emt 0:00:03]} 4. dxc5 {[%emt 0:00:29]} e6 {[%emt 0:00:04]} 5. a3 {[%emt 0:00:11]} Bxc5 {[%emt 0:01:28]} 6. Nf3 {[%emt 0:04:33]} Nd7 {[%emt 0:12:00]} 7. b4 {[%emt 0:02:03]} Be7 {[%emt 0:00:06]} 8. Bb2 {[%emt 0:02:37]} Qc7 {[%emt 0:15:13]} 9. Bd3 {[%emt 0:05:47]} f6 {[%emt 0:04:07]} 10. Qe2 {[%emt 0:17:28]} fxe5 {[%emt 0:20:29]} 11. Nxe5 {[%emt 0:01:38]} Ngf6 {[%emt 0:00:41]} 12. O-O {[%emt 0:05:37]} O-O {[%emt 0:00:15]} 13. Ng6 {[%emt 0:13:20]} Rf7 {[%emt 0:07:59]} 14. Nxe7+ {[%emt 0:12:23]} Rxe7 {[%emt 0:00:03]} 15. c4 {[%emt 0:01:31]} e5 {[%emt 0:14:19]} 16. cxd5 {[%emt 0:02:02]} e4 {[%emt 0:00:13]} 17. Bc4 {[%emt 0:01:10]} Qd6 {[%emt 0:02:51]} 18. Nc3 {[%emt 0:08:57]} a6 {[%emt 0:00:07]} 19. Bb3 {[%emt 0:01:27]} Ne5 {[%emt 0:01:43]} 20. Qe3 {[%emt 0:05:31]} Bf5 {[%emt 0:06:17]} 21. Qc5 {[%emt 0:01:15]} Rd8 {[%emt 0:00:38]} 22. Qxd6 {[%emt 0:02:24]} Rxd6 {[%emt 0:00:01]} 23. Nd1 {[%emt 0:00:49]} b5 {[%emt 0:02:32]} 24. Ne3 {[%emt 0:00:39]} Bd7 {[%emt 0:00:06]} 25. Bd4 {[%emt 0:02:09]} Ne8 {[%emt 0:00:16]} 26. Bc5 {[%emt 0:00:19]} Nd3 {[%emt 0:00:33]} 27. Bxd6 {[%emt 0:01:11]} Nxd6 {[%emt 0:00:01]} 28. Nc2 {[%emt 0:01:04]} Re5 {[%emt 0:00:27]} 29. Ne3 {[%emt 0:01:53]} Nf4 {[%emt 0:00:39]} 30. Rfe1 {[%emt 0:00:52]} Rg5 {[%emt 0:00:22]} 31. g3 {[%emt 0:02:56]} Nh3+ {[%emt 0:02:44]} 32. Kg2 {[%emt 0:00:28]} Nf4+ {[%emt 0:00:01]} 33. Kg1 {[%emt 0:00:06]} Nh3+ {[%emt 0:00:01]} 34. Kf1 {[%emt 0:00:22]} Rg6 {[%emt 0:00:01]} 35. Rec1 {[%emt 0:00:31]} Rf6 {[%emt 0:00:51]} 36. Rc2 {[%emt 0:00:43]} Ng5 {[%emt 0:00:02]} 37. Ke2 {[%emt 0:00:45]} Nf3 {[%emt 0:01:13]} 38. Rd1 {[%emt 0:00:08]} Nxh2 {[%emt 0:01:04]} 39. Rc7 {[%emt 0:01:05]} Be8 {[%emt 0:04:48]} 40. g4 {[%emt 0:00:54]} h5 {[%emt 0:01:55]} 41. Nf5 {[%emt 0:12:28]} Nxg4 {[%emt 0:10:50]} 42. Nxd6 {[%emt 0:01:46]} Rxd6 {[%emt 0:04:59]} 43. Re7 {[%emt 0:02:34]} Nf6 {[%emt 0:01:50]} 44. Re6 {[%emt 0:01:18]} Rd8 {[%emt 0:00:38]} 45. Rxa6 {[%emt 0:02:36]} Bd7 {[%emt 0:01:04]} 46. d6+ {[%emt 0:03:12]} Kh7 {[%emt 0:05:19]} 47. Rg1 {[%emt 0:02:10]} Bg4+ {[%emt 0:02:05]} 48. Ke3 {[%emt 0:01:07]} Ne8 {[%emt 0:04:15]} 49. Bd1 {[%emt 0:01:39]} Bf5 {[%emt 0:00:11]} 50. Bxh5 {[%emt 0:01:23]} Nxd6 {[%emt 0:00:01]} 51. Be2 {[%emt 0:00:48]} Nc4+ {[%emt 0:02:42]} 52. Bxc4 {[%emt 0:03:11]} bxc4 {[%emt 0:00:01]} 53. Rh1+ {[%emt 0:00:44]} Kg8 {[%emt 0:00:02]} 54. Kf4 {[%emt 0:00:53]} g6 {[%emt 0:03:27]} 55. Rc1 {[%emt 0:00:24]} Rf8 {[%emt 0:01:19]} 56. Kg5 {[%emt 0:00:27]} Rc8 {[%emt 0:01:12]} 57. b5 {[%emt 0:00:39]} Rc5 {[%emt 0:00:02]} 58. Kf6 {[%emt 0:00:46]} Bg4 {[%emt 0:01:56]} 59. Kxg6 {[%emt 0:00:30]} Kf8 {[%emt 0:00:20]} 60. b6 {[%emt 0:00:34]} Be6 {[%emt 0:00:13]} 61. b7 {[%emt 0:01:10]} Bf7+ {[%emt 0:00:01]} 62. Kf6 {[%emt 0:00:17]} 1-0

[Event "French Top 16-A 2024"]
[Site "Chartres"]
[Date "2024.06.05"]
[Round "7.9"]
[White "Grigoryan, Karen H."]
[Black "Vachier-Lagrave, Maxime"]
[Result "1/2-1/2"]
[ECO "A12"]
[WhiteElo "2583"]
[BlackElo "2732"]
[Annotator "TA"]
[PlyCount "73"]
[EventDate "2024.06.01"]
[EventType "team-tourn"]
[EventCountry "FRA"]
[SourceTitle "playchess.com"]
[Source "ChessBase"]
[SourceQuality "1"]
[TimeControl "40/5400+30:1800+30"]

{[%evp 9,73,12,22,33,34,27,32,28,30,27,33,24,52,19,45,52,50,34,59,30,35,36,42,21,24,16,23,7,33,0,32,15,20,0,0,0,0,0,0,-9,-6,-14,-4,-21,-18,-23,-16,-45,0,-10,0,0,0,0,0,0,0,0,0,0,0,-12,-13,-18,-5,-5]} 1. Nf3 {[%emt 0:00:26]} d5 {[%emt 0:00:31]} 2. e3 {[%emt 0:00:32]} Nf6 {[%emt 0:02:59]} 3. b3 {[%emt 0:02:04]} g6 {[%emt 0:00:51]} 4. Bb2 {[%emt 0:00:14]} Bg7 {[%emt 0:00:08]} 5. c4 {[%emt 0:00:21]} c6 {[%emt 0:01:36]} 6. Be2 {[%emt 0:01:08]} Bg4 {[%emt 0:01:32]} 7. h3 {[%emt 0:01:14]} Bxf3 {[%emt 0:00:05]} 8. Bxf3 {[%emt 0:00:04] White is slightly better.} O-O {[%emt 0:00:27]} 9. O-O {[%emt 0:00:26]} e6 {[%emt 0:01:28]} 10. Qc2 {[%emt 0:02:18]} a5 {[%emt 0:04:10]} 11. Nc3 {[%emt 0:01:43]} Na6 {[%emt 0:01:10]} 12. d4 {[%emt 0:05:25]} Qd7 {[%emt 0:05:13]} 13. Rfd1 {[%emt 0:05:09]} Rfd8 {[%emt 0:04:05]} 14. a3 {[%emt 0:05:07]} Qe7 {[%emt 0:09:42]} 15. Na4 {[%emt 0:06:45]} Nd7 {[%emt 0:06:47] Prevents Nb6} 16. Bc3 {[%emt 0:05:58]} Nc7 {[%emt 0:10:59]} 17. Qd2 {[%emt 0:05:01]} b6 {[%emt 0:00:27]} 18. Qe1 {[%emt 0:11:08]} Rac8 {[%emt 0:04:45]} 19. Rdc1 {[%emt 0:05:56]} Ne8 {[%emt 0:07:28]} 20. Be2 {[%emt 0:04:03]} Rb8 {[%emt 0:03:44]} 21. Bb2 {[%emt 0:05:25]} c5 {[%emt 0:05:58]} 22. cxd5 {[%emt 0:03:07]} exd5 {[%emt 0:00:14]} 23. Bf3 {[%emt 0:08:06]} cxd4 {[%emt 0:04:18]} 24. exd4 {[%emt 0:01:13]} Qxe1+ {[%emt 0:04:08]} 25. Rxe1 {[%emt 0:00:05]} Nf8 {[%emt 0:00:08]} 26. Nc3 {[%emt 0:09:00]} Nc7 {[%emt 0:00:11]} 27. Ne2 {[%emt 0:12:02]} Nfe6 {[%emt 0:02:14]} 28. h4 {[%emt 0:00:00] Prevents Ng5} h5 {[%emt 0:04:38]} (28... Nc5 $5 29. dxc5 Bxb2 $15) 29. Red1 {[%emt 0:00:00][%cal Be1d1,Bd1d3,Bd3b3,Bb3b5][%mdl 32] [#] The position is equal.} a4 $1 {[%emt 0:01:14]} 30. Rd3 {[%emt 0:00:00]} (30. Rac1 b5) 30... Ra8 {[%emt 0:04:32]} 31. Rc1 {[%emt 0:00:00]} axb3 {[%emt 0:01:01]} 32. Rxb3 {[%emt 0:00:00]} b5 {[%emt 0:00:04]} 33. g4 {[%emt 0:00:00]} hxg4 {[%emt 0:01:31]} 34. Bxg4 {[%emt 0:00:00]} Ra4 {[%emt 0:00:06]} 35. Bxe6 {[%emt 0:00:26]} Nxe6 {[%emt 0:00:06]} 36. Rxb5 {[%emt 0:00:05]} Bxd4 {[%emt 0:00:47]} 37. Nxd4 {[%emt 0:01:02] Weighted Error Value: White=0.10 (very precise) /Black=0.08 (flawless) .  Inaccurate:     	White=4     	Black=5      OK:         	White=9     	Black=13     Best:        	---       	Black=1} 1/2-1/2

[Event "French Top 16-A 2024"]
[Site "Chartres"]
[Date "2024.06.05"]
[Round "7.9"]
[White "Sonis, Francesco"]
[Black "Gharamian, Tigran"]
[Result "1/2-1/2"]
[ECO "B28"]
[WhiteElo "2579"]
[BlackElo "2588"]
[Annotator "TA"]
[PlyCount "75"]
[EventDate "2024.06.01"]
[EventType "team-tourn"]
[EventCountry "FRA"]
[SourceTitle "playchess.com"]
[Source "ChessBase"]
[SourceQuality "1"]
[TimeControl "40/5400+30:1800+30"]

{[%evp 13,75,25,22,14,19,16,21,10,19,20,30,16,32,7,18,18,22,20,33,0,0,0,0,-20,-21,-29,-15,-39,-30,-22,-37,-30,-43,-49,-45,-21,-25,-44,-42,-43,-35,-42,-25,-36,-6,-1,-6,-14,0,0,0,0,0,0,0,0,0,0,0,0,0,0,0,0]} 1. e4 {[%emt 0:00:05]} c5 {[%emt 0:00:06]} 2. Nf3 {[%emt 0:00:05]} a6 {[%emt 0:00:06]} 3. c4 {[%emt 0:01:11]} Nc6 {[%emt 0:00:36]} 4. d4 {[%emt 0:00:23]} cxd4 {[%emt 0:00:06]} 5. Nxd4 {[%emt 0:00:02]} Nf6 {[%emt 0:00:16]} 6. Nc3 {[%emt 0:00:34]} e5 {[%emt 0:00:05]} 7. Nc2 {[%emt 0:08:01]} Bc5 {[%emt 0:00:41]} 8. Bd3 {[%emt 0:03:09]} d6 {[%emt 0:03:29]} 9. O-O {[%emt 0:00:08]} O-O {[%emt 0:06:22]} 10. Rb1 {[%emt 0:08:27]} Bg4 {[%emt 0:16:48]} 11. Qe1 {[%emt 0:10:12]} Rc8 {[%emt 0:06:48]} 12. b4 {[%emt 0:07:02]} Ba7 {[%emt 0:01:58]} 13. Bg5 {[%emt 0:07:12] Nd5 would now be deadly.} h6 {[%emt 0:01:34]} 14. Bxf6 {[%emt 0:07:02]} Qxf6 {[%emt 0:00:14]} 15. Ne3 {[%emt 0:00:19]} Bxe3 {[%emt 0:12:49]} 16. fxe3 {[%emt 0:08:32]} Qd8 {[%emt 0:07:32]} 17. Nd5 {[%emt 0:09:50][%cal Od5f6]} Be6 {[%emt 0:01:55]} 18. Qd2 {[%emt 0:01:29]} Nb8 {[%emt 0:04:25]} 19. a4 {[%emt 0:05:38]} b6 {[%emt 0:07:35]} 20. Rfd1 {[%emt 0:03:11]} Nd7 {[%emt 0:06:18]} 21. c5 {[%emt 0:03:52]} Bxd5 {[%emt 0:00:34]} 22. exd5 {[%emt 0:00:04] [#] Threatens to win with c6.} bxc5 {[%emt 0:00:18]} 23. Bxa6 {[%emt 0:00:08]} Ra8 {[%emt 0:00:16]} 24. Bb5 {[%emt 0:00:20]} cxb4 {[%emt 0:00:38]} 25. Bc6 {[%emt 0:00:04]} Ra7 {[%emt 0:02:46]} 26. Rxb4 {[%emt 0:00:19]} Nc5 {[%emt 0:02:40]} 27. Rc4 {[%emt 0:02:59]} Qb6 {[%emt 0:01:23]} 28. Qb4 {[%emt 0:00:49]} Rb8 {[%emt 0:01:27]} 29. Qxb6 {[%emt 0:02:38] The position is equal.} Rxb6 {[%emt 0:00:02]} 30. Bb5 {[%emt 0:00:07]} Rc7 {[%emt 0:05:36]} 31. g4 {[%emt 0:00:24]} Kf8 {[%emt 0:00:23]} 32. Kg2 {[%emt 0:02:48]} Ke7 {[%emt 0:00:06]} 33. h4 {[%emt 0:00:18]} Rb8 {[%emt 0:05:38]} 34. Rf1 {[%emt 0:00:20]} Ra7 {[%emt 0:00:47]} 35. Rf2 {[%emt 0:01:03]} Rba8 {[%emt 0:00:43]} 36. Bc6 {[%emt 0:00:13]} Rb8 {[%emt 0:00:04]} 37. Bb5 {[%emt 0:00:03]} Rba8 {[%emt 0:00:04]} 38. Bc6 {[%emt 0:01:26] Weighted Error Value: White=0.05 (flawless) /Black=0.04 (flawless) .  Inaccurate:     	White=1     	Black=1      OK:         	White=18    	Black=17     Best:        	White=1     	---} 1/2-1/2

[Event "French Top 16-A 2024"]
[Site "Chartres"]
[Date "2024.06.05"]
[Round "7.10"]
[White "Esipenko, Andrey"]
[Black "Ter-Sahakyan, Samvel"]
[Result "1/2-1/2"]
[ECO "C60"]
[WhiteElo "2704"]
[BlackElo "2652"]
[Annotator "TA"]
[PlyCount "95"]
[EventDate "2024.06.01"]
[EventType "team-tourn"]
[EventCountry "FRA"]
[SourceTitle "playchess.com"]
[Source "ChessBase"]
[SourceQuality "1"]
[TimeControl "40/5400+30:1800+30"]

{[%evp 11,95,16,34,31,55,52,47,47,59,41,46,34,50,22,45,46,52,42,58,50,70,73,58,59,63,46,75,83,88,64,77,43,45,44,45,45,50,43,43,52,40,43,52,48,54,42,42,50,47,46,84,81,82,73,88,75,95,67,64,64,69,62,68,36,44,20,54,50,55,55,56,60,58,61,64,64,64,64,64,64,64,64,131,82,82,82]} 1. e4 {[%emt 0:00:21]} e5 {[%emt 0:00:17]} 2. Nf3 {[%emt 0:00:18]} Nc6 {[%emt 0:00:06]} 3. Bb5 {[%emt 0:00:20]} a6 {[%emt 0:00:07]} 4. Ba4 {[%emt 0:00:06]} Nge7 {[%emt 0:00:17]} 5. O-O {[%emt 0:04:33]} Ng6 {[%emt 0:00:48]} 6. d4 {[%emt 0:00:13] C60: Ruy Lopez: Unusual Black 3rd moves and 3...g6.} exd4 {[%emt 0:05:34]} 7. Nxd4 {[%emt 0:00:08]} Nxd4 {[%emt 0:02:34]} 8. Qxd4 {[%emt 0:00:07]} b5 {[%emt 0:01:48]} 9. Bb3 {[%emt 0:00:06]} Bb7 {[%emt 0:00:23]} 10. Rd1 {[%emt 0:01:51]} Qe7 {[%emt 0:04:57]} 11. Qd3 $5 $146 {[%emt 0:11:40][%mdl 8] New and interesting.} ({Predecessor:} 11. c4 c5 12. Qe3 b4 13. a3 O-O-O 14. axb4 cxb4 15. f3 Qe5 16. Qf2 Bc5 17. Be3 Bxe3 18. Qxe3 {1-0 Pichot,A (2638)-Demchenko,A (2623) Titled Tuesday intern op 16th May Early blitz 2023 (10)}) 11... Bxe4 {[%emt 0:23:35]} 12. Qg3 {[%emt 0:04:54]} Bc6 {[%emt 0:03:38]} 13. Qxc7 {[%emt 0:13:28]} Qe4 {[%emt 0:04:17]} 14. Qg3 {[%emt 0:00:56]} Bb4 {[%emt 0:13:28]} 15. a3 {[%emt 0:17:53]} Qe2 {[%emt 0:06:43]} 16. Qe3+ {[%emt 0:06:00]} Qxe3 {[%emt 0:00:11]} 17. Bxe3 {[%emt 0:00:04]} ({Much worse is} 17. fxe3 Bc5 $15) 17... Ba5 {[%emt 0:01:55]} 18. Nd2 {[%emt 0:02:39]} Ne5 {[%emt 0:10:05]} 19. Bc5 {[%emt 0:07:00]} O-O-O {[%emt 0:04:30]} 20. a4 {[%emt 0:01:46]} Bxd2 {[%emt 0:04:13]} 21. Rxd2 {[%emt 0:00:42]} Nc4 {[%emt 0:00:05]} 22. Bxc4 {[%emt 0:10:37]} bxc4 {[%emt 0:00:03]} 23. Bd6 {[%emt 0:02:10]} Rhe8 {[%emt 0:02:11]} 24. f3 {[%emt 0:00:06]} Re6 {[%emt 0:04:15]} 25. Rd4 {[%emt 0:03:11]} Rde8 {[%emt 0:00:23]} 26. Kf1 {[%emt 0:00:11]} Kb7 {[%emt 0:02:06]} 27. h4 {[%emt 0:01:25]} h6 {[%emt 0:00:56]} 28. Bg3 {[%emt 0:01:26]} d5 {[%emt 0:00:26]} 29. b3 {[%emt 0:00:05]} cxb3 {[%emt 0:01:57]} 30. cxb3 {[%emt 0:00:07]} Re3 {[%emt 0:00:51]} 31. Rb4+ {[%emt 0:02:23]} Ka8 {[%emt 0:00:04]} 32. Rc1 {[%emt 0:01:39]} Rc8 {[%emt 0:01:27]} 33. Kf2 {[%emt 0:00:26]} d4 {[%emt 0:01:50]} 34. Rcc4 {[%emt 0:01:26]} Rc3 $1 {[%emt 0:00:55]} 35. Rxd4 {[%emt 0:01:09]} a5 {[%emt 0:00:10]} 36. Rbc4 $1 {[%emt 0:00:08]} (36. Rb6 Ka7 37. Rxc6 R8xc6 38. Rd7+ Ka6 $16) 36... Rxb3 {[%emt 0:00:42]} 37. Rc5 {[%emt 0:00:31]} Kb7 {[%emt 0:00:24]} 38. Rxa5 {[%emt 0:00:12]} Rb2+ {[%emt 0:00:43]} 39. Kf1 {[%emt 0:03:13]} Rb1+ {[%emt 0:00:16]} 40. Be1 {[%emt 0:01:08]} Re8 {[%emt 0:00:43]} 41. Rb4+ {[%emt 0:30:02]} Rxb4 {[%emt 0:30:06]} 42. Bxb4 {[%emt 0:00:06]} g6 {[%emt 0:00:00]} 43. Bc5 {[%emt 0:00:00]} Ra8 {[%emt 0:00:00]} 44. Rxa8 {[%emt 0:00:00]} Kxa8 {[%emt 0:00:00]} 45. a5 {[%emt 0:00:00]} h5 {[%emt 0:00:00]} 46. Kf2 {[%emt 0:00:00]} f5 {[%emt 0:00:00]} (46... Kb7 $14) 47. a6 {[%emt 0:00:00]} (47. Ke3 $142) 47... Bb5 $16 {[%emt 0:00:00]} 48. a7 {[%emt 0:00:00]} 1/2-1/2

[Event "French Top 16-A 2024"]
[Site "Chartres"]
[Date "2024.06.05"]
[Round "7.10"]
[White "Van Foreest, Jorden"]
[Black "Albornoz Cabrera, Carlos Daniel"]
[Result "1-0"]
[ECO "E04"]
[WhiteElo "2665"]
[BlackElo "2612"]
[Annotator "TA"]
[PlyCount "53"]
[EventDate "2024.06.01"]
[EventType "team-tourn"]
[EventCountry "FRA"]
[SourceTitle "playchess.com"]
[Source "ChessBase"]
[SourceQuality "1"]
[TimeControl "40/5400+30:1800+30"]

{[%evp 12,53,26,39,39,15,19,40,22,-19,-13,-34,81,79,46,58,84,85,187,179,318,333,349,343,338,352,366,358,390,395,356,363,362,373,376,372,353,345,503,501,505,462,474,443]} 1. d4 {[%emt 0:00:05]} d5 {[%emt 0:00:05]} 2. c4 {[%emt 0:00:10]} e6 {[%emt 0:00:04]} 3. Nf3 {[%emt 0:00:39]} Nf6 {[%emt 0:00:04]} 4. g3 {[%emt 0:00:23]} dxc4 {[%emt 0:00:05]} 5. Bg2 {[%emt 0:00:37]} Nbd7 {[%emt 0:00:10]} 6. O-O {[%emt 0:00:14]} c6 {[%emt 0:00:30]} 7. a4 {[%emt 0:00:03][%mdl 1024] White has compensation.} b6 {[%emt 0:00:15]} 8. Nc3 {[%emt 0:00:04]} Nd5 {[%emt 0:00:44]} 9. e4 {[%emt 0:02:58]} Nb4 {[%emt 0:00:05] White is slightly better.} 10. d5 {[%emt 0:07:21][%cal Oa4a5]} Bc5 $1 {[%emt 0:43:24]} 11. Qe2 {[%emt 0:03:03]} e5 {[%emt 0:03:30] [#]} (11... O-O $15 {stays ahead.} 12. dxc6 (12. Qxc4 $2 Ba6 $19) 12... Nxc6) 12. dxc6 $1 $16 {[%emt 0:02:30]} Nxc6 {[%emt 0:00:05]} 13. Qxc4 {[%emt 0:00:17]} h6 {[%emt 0:05:03] Dodges Bg5} 14. a5 {[%emt 0:04:34] White is more active.} Nxa5 {[%emt 0:13:19]} (14... O-O $16 {keeps fighting.}) 15. Qa4 $18 {[%emt 0:02:14][%cal Of1d1] aiming for Rd1!} O-O {[%emt 0:00:05]} (15... Bb7 {was necessary.}) 16. b4 {[%emt 0:01:00]} Bd4 {[%emt 0:00:18]} 17. Nxd4 {[%emt 0:02:02]} exd4 {[%emt 0:00:03]} 18. Nd5 {[%emt 0:02:13]} Nb7 {[%emt 0:00:22][%cal Ba5b7,Bb7d8,Bd8e6][%mdl 32]} (18... Nc4 19. Qc6 $18) 19. Bf4 {[%emt 0:03:34][%cal Bc1f4,Bf4c7,Bc7d6][%mdl 32]} a5 {[%emt 0:04:46]} 20. Bc7 {[%emt 0:03:31]} Qe8 {[%emt 0:00:05]} 21. Qd1 {[%emt 0:01:06]} (21. Bxb6 Nxb6 22. Nxb6 Qxa4 23. Rxa4 Rb8 24. Nxc8 (24. bxa5 Be6 $18) 24... Rfxc8 $16) 21... Nd8 {[%emt 0:01:20]} 22. Bd6 {[%emt 0:00:50] [#] Hoping for Nc7.} (22. Nxb6 Nxb6 23. Bxb6 Ne6 $16) (22. Qxd4 Ba6 23. Rfd1 Nc6 $18) (22. Bxb6 Ne6 23. Bxa5 (23. bxa5 Nxb6 24. axb6 Rxa1 $18) (23. Bxd4 Ba6 $16) 23... Bb7 $18) (22. bxa5 Rxa5 23. Rxa5 (23. Qxd4 Ne6 $15) (23. Nxb6 Rxa1 24. Qxa1 Ne6 $11) 23... bxa5 $18) 22... Ne6 {[%emt 0:00:05]} 23. e5 {[%emt 0:00:52] And now Ne7+ would win.} Ba6 {[%emt 0:01:59]} 24. Re1 {[%emt 0:00:43]} Ra7 {[%emt 0:00:25]} (24... d3 $142 25. f4 (25. bxa5 bxa5 26. Bxf8 Qxf8 $18) 25... Ra7 26. Ne7+ (26. bxa5 bxa5 27. Qd2 Nb8 $18) 26... Kh8) 25. Ne7+ {[%emt 0:01:07][%cal Bd5e7,Be7c6,Bc6d4][%mdl 32] White is clearly winning.} Kh8 {[%emt 0:00:05]} 26. Nc6 {[%emt 0:00:03]} Ra8 {[%emt 0:00:41]} 27. Nxd4 {[%emt 0:00:50] Weighted Error Value: White=0.03 (flawless) /Black=0.35.  Mistake:       	---       	Black=4      Inaccurate:     	White=1     	Black=1      OK:         	White=10    	Black=7      Best:        	White=2     	---        Strong:       	White=1     	Black=1} 1-0